Workbook

Sheet 54B
A1: 1 | B1: =A1+1 -> 2 | C1: =B1+1 -> 3 | D1: 4 | E1: 5 | F1: 6 | G1: 7 | H1: 8 | I1: 9 | J1: 10 | K1: 11 | L1: 12 | M1: 13
B2: -1 | C2: -0.5 | D2: 0.5 | E2: 1 | F2: =E2+0.5 -> 1.5 | G2: =F2+0.5 -> 2 | H2: 2.5 | I2: 3 | J2: 3.5 | K2: 4 | L2: 4.5 | M2: 5 | P2: =S20 -> 4.7
A3: 0.491 | E3: 61 | F3: 75 | G3: 93 | H3: 112 | I3: 130 | J3: 147 | K3: 164 | L3: 179 | M3: 192 | O3: 7.901 | P3: =(HLOOKUP($P$2+0.5,$B$2:$M$41,40)-HLOOKUP($P$2,$B$2:$M$41,40))/(HLOOKUP($P$2+0.5,$B$2:$M$41,1)-HLOOKUP($P$2,$B$2:$M$41,1))*($P$2-HLOOKUP($P$2,$B$2:$M$41,1))+HLOOKUP($P$2,$B$2:$M$41,40) -> -37.6
A4: 0.6 | B4: -23 | C4: -14 | D4: 16 | E4: 33 | F4: 49 | G4: 66 | H4: 81 | I4: 95 | J4: 107 | K4: 119 | L4: 131 | M4: 143 | O4: 7.8 | P4: =(HLOOKUP($P$2+0.5,$B$2:$M$41,39)-HLOOKUP($P$2,$B$2:$M$41,39))/(HLOOKUP($P$2+0.5,$B$2:$M$41,1)-HLOOKUP($P$2,$B$2:$M$41,1))*($P$2-HLOOKUP($P$2,$B$2:$M$41,1))+HLOOKUP($P$2,$B$2:$M$41,39) -> 11.8
A5: 0.8 | B5: -17 | C5: -9 | D5: 9 | E5: 17 | F5: 26 | G5: 34 | H5: 43 | I5: 52 | J5: 61 | K5: 71 | L5: 81 | M5: 92 | O5: 7.6 | P5: =(HLOOKUP($P$2+0.5,$B$2:$M$41,38)-HLOOKUP($P$2,$B$2:$M$41,38))/(HLOOKUP($P$2+0.5,$B$2:$M$41,1)-HLOOKUP($P$2,$B$2:$M$41,1))*($P$2-HLOOKUP($P$2,$B$2:$M$41,1))+HLOOKUP($P$2,$B$2:$M$41,38) -> 49
A6: 1 | B6: -17 | C6: -8 | D6: 8 | E6: 17 | F6: 25 | G6: 34 | H6: 42 | I6: 51 | J6: 59 | K6: 68 | L6: 76 | M6: 85 | O6: 7.4 | P6: =(HLOOKUP($P$2+0.5,$B$2:$M$41,37)-HLOOKUP($P$2,$B$2:$M$41,37))/(HLOOKUP($P$2+0.5,$B$2:$M$41,1)-HLOOKUP($P$2,$B$2:$M$41,1))*($P$2-HLOOKUP($P$2,$B$2:$M$41,1))+HLOOKUP($P$2,$B$2:$M$41,37) -> 52
A7: 1.2 | B7: -17 | C7: -8 | D7: 8 | E7: 17 | F7: 25 | G7: 34 | H7: 42 | I7: 51 | J7: 59 | K7: 67 | L7: 76 | M7: 84 | O7: 7.2 | P7: =(HLOOKUP($P$2+0.5,$B$2:$M$41,36)-HLOOKUP($P$2,$B$2:$M$41,36))/(HLOOKUP($P$2+0.5,$B$2:$M$41,1)-HLOOKUP($P$2,$B$2:$M$41,1))*($P$2-HLOOKUP($P$2,$B$2:$M$41,1))+HLOOKUP($P$2,$B$2:$M$41,36) -> 54
A8: 1.4 | B8: -17 | C8: -8 | D8: 8 | E8: 17 | F8: 25 | G8: 33 | H8: 42 | I8: 50 | J8: 58 | K8: 67 | L8: 75 | M8: 83 | O8: 7 | P8: =(HLOOKUP($P$2+0.5,$B$2:$M$41,35)-HLOOKUP($P$2,$B$2:$M$41,35))/(HLOOKUP($P$2+0.5,$B$2:$M$41,1)-HLOOKUP($P$2,$B$2:$M$41,1))*($P$2-HLOOKUP($P$2,$B$2:$M$41,1))+HLOOKUP($P$2,$B$2:$M$41,35) -> 56
A9: 1.6 | B9: -17 | C9: -8 | D9: 8 | E9: 17 | F9: 25 | G9: 33 | H9: 42 | I9: 50 | J9: 58 | K9: 66 | L9: 75 | M9: 83 | O9: 6.8 | P9: =(HLOOKUP($P$2+0.5,$B$2:$M$41,34)-HLOOKUP($P$2,$B$2:$M$41,34))/(HLOOKUP($P$2+0.5,$B$2:$M$41,1)-HLOOKUP($P$2,$B$2:$M$41,1))*($P$2-HLOOKUP($P$2,$B$2:$M$41,1))+HLOOKUP($P$2,$B$2:$M$41,34) -> 57.4
A10: 1.8 | B10: -17 | C10: -8 | D10: 8 | E10: 17 | F10: 25 | G10: 33 | H10: 41 | I10: 50 | J10: 58 | K10: 66 | L10: 74 | M10: 82 | O10: 6.6 | P10: =(HLOOKUP($P$2+0.5,$B$2:$M$41,33)-HLOOKUP($P$2,$B$2:$M$41,33))/(HLOOKUP($P$2+0.5,$B$2:$M$41,1)-HLOOKUP($P$2,$B$2:$M$41,1))*($P$2-HLOOKUP($P$2,$B$2:$M$41,1))+HLOOKUP($P$2,$B$2:$M$41,33) -> 59.4
A11: 2 | B11: -17 | C11: -8 | D11: 8 | E11: 16 | F11: 25 | G11: 33 | H11: 41 | I11: 49 | J11: 57 | K11: 65 | L11: 74 | M11: 82 | O11: 6.4 | P11: =(HLOOKUP($P$2+0.5,$B$2:$M$41,32)-HLOOKUP($P$2,$B$2:$M$41,32))/(HLOOKUP($P$2+0.5,$B$2:$M$41,1)-HLOOKUP($P$2,$B$2:$M$41,1))*($P$2-HLOOKUP($P$2,$B$2:$M$41,1))+HLOOKUP($P$2,$B$2:$M$41,32) -> 60.4
A12: 2.2 | B12: -16 | C12: -8 | D12: 8 | E12: 16 | F12: 25 | G12: 33 | H12: 41 | I12: 49 | J12: 57 | K12: 65 | L12: 73 | M12: 81 | O12: 6.2 | P12: =(HLOOKUP($P$2+0.5,$B$2:$M$41,31)-HLOOKUP($P$2,$B$2:$M$41,31))/(HLOOKUP($P$2+0.5,$B$2:$M$41,1)-HLOOKUP($P$2,$B$2:$M$41,1))*($P$2-HLOOKUP($P$2,$B$2:$M$41,1))+HLOOKUP($P$2,$B$2:$M$41,31) -> 62.4
A13: 2.4 | B13: -16 | C13: -8 | D13: 8 | E13: 16 | F13: 24 | G13: 32 | H13: 41 | I13: 49 | J13: 57 | K13: 65 | L13: 73 | M13: 81 | O13: 6 | P13: =(HLOOKUP($P$2+0.5,$B$2:$M$41,30)-HLOOKUP($P$2,$B$2:$M$41,30))/(HLOOKUP($P$2+0.5,$B$2:$M$41,1)-HLOOKUP($P$2,$B$2:$M$41,1))*($P$2-HLOOKUP($P$2,$B$2:$M$41,1))+HLOOKUP($P$2,$B$2:$M$41,30) -> 63.4
A14: 2.6 | B14: -16 | C14: -8 | D14: 8 | E14: 16 | F14: 24 | G14: 32 | H14: 40 | I14: 48 | J14: 56 | K14: 64 | L14: 72 | M14: 80 | O14: 5.8 | P14: =(HLOOKUP($P$2+0.5,$B$2:$M$41,29)-HLOOKUP($P$2,$B$2:$M$41,29))/(HLOOKUP($P$2+0.5,$B$2:$M$41,1)-HLOOKUP($P$2,$B$2:$M$41,1))*($P$2-HLOOKUP($P$2,$B$2:$M$41,1))+HLOOKUP($P$2,$B$2:$M$41,29) -> 64.4
A15: 2.8 | B15: -16 | C15: -8 | D15: 8 | E15: 16 | F15: 24 | G15: 32 | H15: 40 | I15: 48 | J15: 56 | K15: 64 | L15: 72 | M15: 80 | O15: 5.6 | P15: =(HLOOKUP($P$2+0.5,$B$2:$M$41,28)-HLOOKUP($P$2,$B$2:$M$41,28))/(HLOOKUP($P$2+0.5,$B$2:$M$41,1)-HLOOKUP($P$2,$B$2:$M$41,1))*($P$2-HLOOKUP($P$2,$B$2:$M$41,1))+HLOOKUP($P$2,$B$2:$M$41,28) -> 65.8
A16: 3 | B16: -16 | C16: -8 | D16: 8 | E16: 16 | F16: 24 | G16: 32 | H16: 40 | I16: 48 | J16: 55 | K16: 63 | L16: 71 | M16: 79 | O16: 5.4 | P16: =(HLOOKUP($P$2+0.5,$B$2:$M$41,27)-HLOOKUP($P$2,$B$2:$M$41,27))/(HLOOKUP($P$2+0.5,$B$2:$M$41,1)-HLOOKUP($P$2,$B$2:$M$41,1))*($P$2-HLOOKUP($P$2,$B$2:$M$41,1))+HLOOKUP($P$2,$B$2:$M$41,27) -> 66.4
A17: 3.2 | B17: -16 | C17: -8 | D17: 8 | E17: 16 | F17: 24 | G17: 32 | H17: 39 | I17: 47 | J17: 55 | K17: 63 | L17: 71 | M17: 78 | O17: 5.2 | P17: =(HLOOKUP($P$2+0.5,$B$2:$M$41,26)-HLOOKUP($P$2,$B$2:$M$41,26))/(HLOOKUP($P$2+0.5,$B$2:$M$41,1)-HLOOKUP($P$2,$B$2:$M$41,1))*($P$2-HLOOKUP($P$2,$B$2:$M$41,1))+HLOOKUP($P$2,$B$2:$M$41,26) -> 66.8 | V17: D1 | X17: =S20 -> 4.7 | Z17: D2
A18: 3.4 | B18: -16 | C18: -8 | D18: 8 | E18: 16 | F18: 24 | G18: 31 | H18: 39 | I18: 47 | J18: 55 | K18: 62 | L18: 70 | M18: 78 | O18: 5 | P18: =(HLOOKUP($P$2+0.5,$B$2:$M$41,25)-HLOOKUP($P$2,$B$2:$M$41,25))/(HLOOKUP($P$2+0.5,$B$2:$M$41,1)-HLOOKUP($P$2,$B$2:$M$41,1))*($P$2-HLOOKUP($P$2,$B$2:$M$41,1))+HLOOKUP($P$2,$B$2:$M$41,25) -> 67.8 | T18: T1 | V18: 4.5 | Z18: 5
A19: 3.6 | B19: -16 | C19: -8 | D19: 8 | E19: 16 | F19: 23 | G19: 31 | H19: 39 | I19: 47 | J19: 54 | K19: 62 | L19: 70 | M19: 77 | O19: 4.8 | P19: =(HLOOKUP($P$2+0.5,$B$2:$M$41,24)-HLOOKUP($P$2,$B$2:$M$41,24))/(HLOOKUP($P$2+0.5,$B$2:$M$41,1)-HLOOKUP($P$2,$B$2:$M$41,1))*($P$2-HLOOKUP($P$2,$B$2:$M$41,1))+HLOOKUP($P$2,$B$2:$M$41,24) -> 68.8 | T19: =A20 -> 3.8 | U19: O1 | V19: =L20 -> 69 | W19: O5 | X19: =(Z19-V19)/(Z18-V18)*(S20-V18)+V19 -> 71.8 | Y19: O3 | Z19: =M20 -> 76
A20: 3.8 | B20: -16 | C20: -8 | D20: 8 | E20: 15 | F20: 23 | G20: 31 | H20: 38 | I20: 46 | J20: 54 | K20: 61 | L20: 69 | M20: 76 | O20: 4.6 | P20: =(HLOOKUP($P$2+0.5,$B$2:$M$41,22)-HLOOKUP($P$2,$B$2:$M$41,22))/(HLOOKUP($P$2+0.5,$B$2:$M$41,1)-HLOOKUP($P$2,$B$2:$M$41,1))*($P$2-HLOOKUP($P$2,$B$2:$M$41,1))+HLOOKUP($P$2,$B$2:$M$41,22) -> 69.8 | S20: 4.7 | T20: 3.8 | V20: =Corr54b(T20,S20) -> 71.8 | X20: =X19-(X19-X21)/(T21-T19)*(T20-T19) -> 71.8
A21: 4 | B21: -15 | C21: -8 | D21: 8 | E21: 15 | F21: 23 | G21: 31 | H21: 38 | I21: 46 | J21: 53 | K21: 61 | L21: 68 | M21: 75 | O21: 4.4 | P21: =(HLOOKUP($P$2+0.5,$B$2:$M$41,23)-HLOOKUP($P$2,$B$2:$M$41,23))/(HLOOKUP($P$2+0.5,$B$2:$M$41,1)-HLOOKUP($P$2,$B$2:$M$41,1))*($P$2-HLOOKUP($P$2,$B$2:$M$41,1))+HLOOKUP($P$2,$B$2:$M$41,23) -> 69.8 | T21: =A21 -> 4 | U21: O2 | V21: =L21 -> 68 | W21: O6 | X21: =(Z21-V21)/(Z18-V18)*(S20-V18)+V21 -> 70.8 | Y21: O4 | Z21: =M21 -> 75
A22: 4.2 | B22: -15 | C22: -8 | D22: 8 | E22: 15 | F22: 23 | G22: 30 | H22: 38 | I22: 45 | J22: 53 | K22: 60 | L22: 68 | M22: 75 | O22: 4.2 | P22: =(HLOOKUP($P$2+0.5,$B$2:$M$41,20)-HLOOKUP($P$2,$B$2:$M$41,20))/(HLOOKUP($P$2+0.5,$B$2:$M$41,1)-HLOOKUP($P$2,$B$2:$M$41,1))*($P$2-HLOOKUP($P$2,$B$2:$M$41,1))+HLOOKUP($P$2,$B$2:$M$41,20) -> 70.8 | T22: T2
A23: 4.4 | B23: -15 | C23: -8 | D23: 8 | E23: 15 | F23: 23 | G23: 30 | H23: 37 | I23: 45 | J23: 52 | K23: 60 | L23: 67 | M23: 74 | O23: 4 | P23: =(HLOOKUP($P$2+0.5,$B$2:$M$41,21)-HLOOKUP($P$2,$B$2:$M$41,21))/(HLOOKUP($P$2+0.5,$B$2:$M$41,1)-HLOOKUP($P$2,$B$2:$M$41,1))*($P$2-HLOOKUP($P$2,$B$2:$M$41,1))+HLOOKUP($P$2,$B$2:$M$41,21) -> 70.8
A24: 4.6 | B24: -15 | C24: -7 | D24: 7 | E24: 15 | F24: 22 | G24: 30 | H24: 37 | I24: 45 | J24: 52 | K24: 59 | L24: 67 | M24: 74 | O24: 3.8 | P24: =(HLOOKUP($P$2+0.5,$B$2:$M$41,19)-HLOOKUP($P$2,$B$2:$M$41,19))/(HLOOKUP($P$2+0.5,$B$2:$M$41,1)-HLOOKUP($P$2,$B$2:$M$41,1))*($P$2-HLOOKUP($P$2,$B$2:$M$41,1))+HLOOKUP($P$2,$B$2:$M$41,19) -> 71.8
A25: 4.8 | B25: -15 | C25: -7 | D25: 7 | E25: 15 | F25: 22 | G25: 29 | H25: 37 | I25: 44 | J25: 51 | K25: 59 | L25: 66 | M25: 73 | O25: 3.6 | P25: =(HLOOKUP($P$2+0.5,$B$2:$M$41,18)-HLOOKUP($P$2,$B$2:$M$41,18))/(HLOOKUP($P$2+0.5,$B$2:$M$41,1)-HLOOKUP($P$2,$B$2:$M$41,1))*($P$2-HLOOKUP($P$2,$B$2:$M$41,1))+HLOOKUP($P$2,$B$2:$M$41,18) -> 72.8 | S25: =S20 -> 4.7 | T25: =Замер11(V25, S25) -> 0 | V25: =V20 -> 71.8
A26: 5 | B26: -15 | C26: -7 | D26: 7 | E26: 15 | F26: 22 | G26: 29 | H26: 36 | I26: 44 | J26: 51 | K26: 58 | L26: 65 | M26: 72 | O26: 3.4 | P26: =(HLOOKUP($P$2+0.5,$B$2:$M$41,17)-HLOOKUP($P$2,$B$2:$M$41,17))/(HLOOKUP($P$2+0.5,$B$2:$M$41,1)-HLOOKUP($P$2,$B$2:$M$41,1))*($P$2-HLOOKUP($P$2,$B$2:$M$41,1))+HLOOKUP($P$2,$B$2:$M$41,17) -> 73.2
A27: 5.2 | B27: -15 | C27: -7 | D27: 7 | E27: 14 | F27: 22 | G27: 29 | H27: 36 | I27: 43 | J27: 50 | K27: 57 | L27: 64 | M27: 71 | O27: 3.2 | P27: =(HLOOKUP($P$2+0.5,$B$2:$M$41,16)-HLOOKUP($P$2,$B$2:$M$41,16))/(HLOOKUP($P$2+0.5,$B$2:$M$41,1)-HLOOKUP($P$2,$B$2:$M$41,1))*($P$2-HLOOKUP($P$2,$B$2:$M$41,1))+HLOOKUP($P$2,$B$2:$M$41,16) -> 73.8
A28: 5.4 | B28: -14 | C28: -7 | D28: 7 | E28: 14 | F28: 21 | G28: 29 | H28: 36 | I28: 43 | J28: 50 | K28: 57 | L28: 64 | M28: 70 | O28: 3 | P28: =(HLOOKUP($P$2+0.5,$B$2:$M$41,15)-HLOOKUP($P$2,$B$2:$M$41,15))/(HLOOKUP($P$2+0.5,$B$2:$M$41,1)-HLOOKUP($P$2,$B$2:$M$41,1))*($P$2-HLOOKUP($P$2,$B$2:$M$41,1))+HLOOKUP($P$2,$B$2:$M$41,15) -> 74.2
A29: 5.6 | B29: -14 | C29: -7 | D29: 7 | E29: 14 | F29: 21 | G29: 28 | H29: 35 | I29: 42 | J29: 49 | K29: 56 | L29: 63 | M29: 70 | O29: 2.8 | P29: =(HLOOKUP($P$2+0.5,$B$2:$M$41,13)-HLOOKUP($P$2,$B$2:$M$41,13))/(HLOOKUP($P$2+0.5,$B$2:$M$41,1)-HLOOKUP($P$2,$B$2:$M$41,1))*($P$2-HLOOKUP($P$2,$B$2:$M$41,1))+HLOOKUP($P$2,$B$2:$M$41,13) -> 75.2 | S29: (O3-O1)/(D2-D1)*(D15-D1)+O1
A30: 5.8 | B30: -14 | C30: -7 | D30: 7 | E30: 14 | F30: 21 | G30: 28 | H30: 35 | I30: 41 | J30: 48 | K30: 55 | L30: 62 | M30: 68 | O30: 2.6 | P30: =(HLOOKUP($P$2+0.5,$B$2:$M$41,14)-HLOOKUP($P$2,$B$2:$M$41,14))/(HLOOKUP($P$2+0.5,$B$2:$M$41,1)-HLOOKUP($P$2,$B$2:$M$41,1))*($P$2-HLOOKUP($P$2,$B$2:$M$41,1))+HLOOKUP($P$2,$B$2:$M$41,14) -> 75.2 | S30: (O4-O2)/(D2-D1)*(D15-D1)+O2
A31: 6 | B31: -14 | C31: -7 | D31: 7 | E31: 14 | F31: 21 | G31: 27 | H31: 34 | I31: 41 | J31: 47 | K31: 54 | L31: 61 | M31: 67 | O31: 2.4 | P31: =(HLOOKUP($P$2+0.5,$B$2:$M$41,11)-HLOOKUP($P$2,$B$2:$M$41,11))/(HLOOKUP($P$2+0.5,$B$2:$M$41,1)-HLOOKUP($P$2,$B$2:$M$41,1))*($P$2-HLOOKUP($P$2,$B$2:$M$41,1))+HLOOKUP($P$2,$B$2:$M$41,11) -> 76.2 | S31: O5-(O5-O6)/(T2-T1)*(T-T1)
A32: 6.2 | B32: -14 | C32: -7 | D32: 7 | E32: 14 | F32: 20 | G32: 27 | H32: 34 | I32: 40 | J32: 47 | K32: 53 | L32: 60 | M32: 66 | O32: 2.2 | P32: =(HLOOKUP($P$2+0.5,$B$2:$M$41,12)-HLOOKUP($P$2,$B$2:$M$41,12))/(HLOOKUP($P$2+0.5,$B$2:$M$41,1)-HLOOKUP($P$2,$B$2:$M$41,1))*($P$2-HLOOKUP($P$2,$B$2:$M$41,1))+HLOOKUP($P$2,$B$2:$M$41,12) -> 76.2
A33: 6.4 | B33: -13 | C33: -7 | D33: 7 | E33: 13 | F33: 20 | G33: 26 | H33: 33 | I33: 39 | J33: 46 | K33: 52 | L33: 58 | M33: 64 | O33: 2 | P33: =(HLOOKUP($P$2+0.5,$B$2:$M$41,9)-HLOOKUP($P$2,$B$2:$M$41,9))/(HLOOKUP($P$2+0.5,$B$2:$M$41,1)-HLOOKUP($P$2,$B$2:$M$41,1))*($P$2-HLOOKUP($P$2,$B$2:$M$41,1))+HLOOKUP($P$2,$B$2:$M$41,9) -> 77.2
A34: 6.6 | B34: -13 | C34: -7 | D34: 7 | E34: 13 | F34: 19 | G34: 26 | H34: 32 | I34: 38 | J34: 45 | K34: 51 | L34: 57 | M34: 63 | O34: 1.8 | P34: =(HLOOKUP($P$2+0.5,$B$2:$M$41,10)-HLOOKUP($P$2,$B$2:$M$41,10))/(HLOOKUP($P$2+0.5,$B$2:$M$41,1)-HLOOKUP($P$2,$B$2:$M$41,1))*($P$2-HLOOKUP($P$2,$B$2:$M$41,1))+HLOOKUP($P$2,$B$2:$M$41,10) -> 77.2
A35: 6.8 | B35: -13 | C35: -6 | D35: 6 | E35: 13 | F35: 19 | G35: 25 | H35: 31 | I35: 37 | J35: 43 | K35: 49 | L35: 55 | M35: 61 | O35: 1.6 | P35: =(HLOOKUP($P$2+0.5,$B$2:$M$41,7)-HLOOKUP($P$2,$B$2:$M$41,7))/(HLOOKUP($P$2+0.5,$B$2:$M$41,1)-HLOOKUP($P$2,$B$2:$M$41,1))*($P$2-HLOOKUP($P$2,$B$2:$M$41,1))+HLOOKUP($P$2,$B$2:$M$41,7) -> 78.2
A36: 7 | B36: -13 | C36: -6 | D36: 6 | E36: 12 | F36: 18 | G36: 24 | H36: 30 | I36: 36 | J36: 42 | K36: 48 | L36: 54 | M36: 59 | O36: 1.4 | P36: =(HLOOKUP($P$2+0.5,$B$2:$M$41,8)-HLOOKUP($P$2,$B$2:$M$41,8))/(HLOOKUP($P$2+0.5,$B$2:$M$41,1)-HLOOKUP($P$2,$B$2:$M$41,1))*($P$2-HLOOKUP($P$2,$B$2:$M$41,1))+HLOOKUP($P$2,$B$2:$M$41,8) -> 78.2
A37: 7.2 | B37: -12 | C37: -6 | D37: 6 | E37: 12 | F37: 18 | G37: 24 | H37: 29 | I37: 35 | J37: 41 | K37: 46 | L37: 52 | M37: 57 | O37: 1.2 | P37: =(HLOOKUP($P$2+0.5,$B$2:$M$41,6)-HLOOKUP($P$2,$B$2:$M$41,6))/(HLOOKUP($P$2+0.5,$B$2:$M$41,1)-HLOOKUP($P$2,$B$2:$M$41,1))*($P$2-HLOOKUP($P$2,$B$2:$M$41,1))+HLOOKUP($P$2,$B$2:$M$41,6) -> 79.2
A38: 7.4 | B38: -12 | C38: -6 | D38: 6 | E38: 12 | F38: 17 | G38: 23 | H38: 28 | I38: 34 | J38: 39 | K38: 44 | L38: 50 | M38: 55 | O38: 1 | P38: =(HLOOKUP($P$2+0.5,$B$2:$M$41,5)-HLOOKUP($P$2,$B$2:$M$41,5))/(HLOOKUP($P$2+0.5,$B$2:$M$41,1)-HLOOKUP($P$2,$B$2:$M$41,1))*($P$2-HLOOKUP($P$2,$B$2:$M$41,1))+HLOOKUP($P$2,$B$2:$M$41,5) -> 79.6
A39: 7.6 | B39: -11 | C39: -6 | D39: 6 | E39: 11 | F39: 16 | G39: 22 | H39: 27 | I39: 32 | J39: 37 | K39: 42 | L39: 47 | M39: 52 | O39: 0.8 | P39: =(HLOOKUP($P$2+0.5,$B$2:$M$41,4)-HLOOKUP($P$2,$B$2:$M$41,4))/(HLOOKUP($P$2+0.5,$B$2:$M$41,1)-HLOOKUP($P$2,$B$2:$M$41,1))*($P$2-HLOOKUP($P$2,$B$2:$M$41,1))+HLOOKUP($P$2,$B$2:$M$41,4) -> 85.4
A40: 7.8 | B40: -11 | C40: -5 | D40: 5 | E40: 11 | F40: 16 | G40: 20 | H40: 21 | I40: 20 | J40: 18 | K40: 16 | L40: 13 | M40: 10 | O40: 0.6 | P40: =(HLOOKUP($P$2+0.5,$B$2:$M$41,3)-HLOOKUP($P$2,$B$2:$M$41,3))/(HLOOKUP($P$2+0.5,$B$2:$M$41,1)-HLOOKUP($P$2,$B$2:$M$41,1))*($P$2-HLOOKUP($P$2,$B$2:$M$41,1))+HLOOKUP($P$2,$B$2:$M$41,3) -> 135.8
A41: 7.901 | B41: -19 | C41: -9 | D41: -4 | E41: -8 | F41: -12 | G41: -16 | H41: -20 | I41: -24 | J41: -28 | K41: -32 | L41: -36 | M41: -40 | O41: 0.491 | P41: =(HLOOKUP($P$2+0.5,$B$2:$M$41,2)-HLOOKUP($P$2,$B$2:$M$41,2))/(HLOOKUP($P$2+0.5,$B$2:$M$41,1)-HLOOKUP($P$2,$B$2:$M$41,1))*($P$2-HLOOKUP($P$2,$B$2:$M$41,1))+HLOOKUP($P$2,$B$2:$M$41,2) -> 184.2
